fUST/lending_fUST_20241108
["ID","MTS","AMOUNT","RATE_DAILY","PERIOD"]
[341620800,1731041446962,-320.895232,0.00024955,7]
[341620801,1731041446971,-320.895232,0.00024955,7]
[341620802,1731041446980,-151.0,0.00024955,7]
[341620803,1731041446990,-151.0,0.00024955,7]
[341620804,1731041446999,-151.0,0.00024955,7]
[341620805,1731041447012,-151.0,0.00024955,7]
[341620806,1731041447022,-151.0,0.00024955,7]
[341620807,1731041447032,-151.0,0.00024955,7]
[341620808,1731041447041,-151.0,0.00024955,7]
[341620809,1731041447051,-151.0,0.00024955,7]
[341620810,1731041447060,-151.0,0.00024955,7]
[341620811,1731041447069,-151.0,0.00024956,7]
[341620812,1731041447078,-151.0,0.00024956,7]
[341620813,1731041447088,-151.0,0.00024956,7]
[341620814,1731041447096,-151.0,0.00024956,7]
[341620815,1731041447106,-174.0603,0.00024956,7]
[341620816,1731041447115,-151.0,0.00024956,7]
[341620817,1731041447124,-151.0,0.00024956,7]
[341620818,1731041447133,-151.0,0.00024956,7]
[341620819,1731041447143,-193.233933,0.00024956,7]
[341620820,1731041447152,-151.0,0.00024956,7]
[341620821,1731041447162,-151.0,0.00024956,7]
[341620822,1731041447171,-151.0,0.00024956,7]
[341620823,1731041447180,-151.0,0.00024956,7]
[341620824,1731041447189,-151.0,0.00024956,7]
[341620825,1731041447199,-151.0,0.00024956,7]
[341620826,1731041447208,-151.0,0.00024956,7]
[341620827,1731041447217,-151.0,0.00024956,7]
[341620828,1731041447227,-151.0,0.00024956,7]
[341620829,1731041447235,-151.0,0.00024956,7]
[341620830,1731041447245,-151.0,0.00024956,7]
[341620831,1731041447256,-151.0,0.00024956,7]
[341620832,1731041447266,-151.0,0.00024956,7]
[341620833,1731041447275,-151.0,0.00024956,7]
[341620834,1731041447285,-151.707908,0.00024956,7]
[341620835,1731041447295,-151.0,0.00024956,7]
[341620836,1731041447304,-151.0,0.00024956,7]
[341620837,1731041447314,-151.0,0.00024956,7]
[341620838,1731041447323,-151.0,0.00024956,7]
[341620839,1731041447333,-151.0,0.00024956,7]
[341620840,1731041447344,-151.0,0.00024956,7]
[341620841,1731041447354,-151.0,0.00024956,7]
[341620842,1731041447363,-151.0,0.00024956,7]
[341620843,1731041447374,-151.0,0.00024956,7]
[341620844,1731041447384,-252.488829,0.00024956,7]
[341620845,1731041447393,-151.0,0.00024958,7]
[341620846,1731041447403,-151.0,0.00024958,7]
[341620847,1731041447412,-249.408838,0.00024958,7]
[341620848,1731041447422,-151.0,0.0002496,7]
[341620849,1731041447431,-151.0,0.0002496,7]
[341620850,1731041447442,-151.0,0.0002496,7]
[341620851,1731041447452,-151.0,0.0002496,7]
[341620852,1731041447462,-151.0,0.0002496,7]
[341620853,1731041447472,-151.0,0.0002496,7]
[341620854,1731041447482,-151.0,0.0002496,7]
[341620855,1731041447491,-155.02755,0.0002496,7]
[341620856,1731041447500,-162.48991277,0.00024973,2]
[341620857,1731041447510,-501.65211882,0.00024973,2]
[341620858,1731041447519,-500.0,0.00024973,2]
[341620859,1731041447528,-500.8274739,0.00024973,2]
[341620860,1731041447537,-150.58364788,0.00024973,2]
[341620861,1731041447548,-418.11994306,0.00024973,2]
[341620862,1731041447557,-9189.90178686,0.00025,2]
[341620863,1731041447567,-1787.41024199,0.00025093,2]
[341620864,1731041447576,-18861.24,0.00025099,2]
[341620865,1731041447586,-502.59899878,0.00025133,2]
[341620866,1731041447595,-500.98686105,0.00025133,2]
[341620867,1731041447604,-626.936434,0.000255,2]
[341620868,1731041447614,-201.388,0.00025768,2]
[341620869,1731041447623,-531.957,0.00025768,2]
[341620870,1731041447631,-2392.0,0.00025768,2]
[341620871,1731041447641,-3131.26589622,0.00025829,2]
[341620872,1731041447652,-553.26,0.00025857,3]
[341620873,1731041447661,-253.763672,0.00025998,7]
[341620874,1731041447670,-167.59803289,0.00025999,2]
[341620875,1731041447680,-500.0,0.00025999,2]
[341620876,1731041447689,-150.75722712,0.00025999,2]
[341620877,1731041447699,-307.0,0.00026,2]
[341620878,1731041447708,-4480.93355435,0.00026088,2]
[341620879,1731041447717,-534.38,0.000261,14]
[341620880,1731041447727,-15815.99,0.000261,14]
[341620881,1731041447737,-15877.1,0.000261,14]
[341620882,1731041447746,-4188.59,0.000261,14]
[341620883,1731041447756,-548.47,0.000261,14]
[341620884,1731041447765,-307.0,0.00026164,2]
[341620885,1731041447775,-500.0,0.00026273,2]
[341620886,1731041447784,-161.565199,0.00026274,2]
[341620887,1731041447794,-1000.0,0.00026284,2]
[341620888,1731041447804,-1000.0,0.00026284,2]
[341620889,1731041447814,-1000.0,0.00026284,2]
[341620890,1731041447824,-1787.41024199,0.00026287,2]
[341620891,1731041447834,-1000.0,0.00026342,2]
[341620892,1731041447843,-161.214,0.0002653,13]
[341620893,1731041447853,-200.48196833,0.00026547,2]
[341620894,1731041447862,-500.0,0.00026547,2]
[341620895,1731041447871,-3131.26589622,0.00026632,2]
[341620896,1731041447880,-500.0,0.00026634,2]
[341620897,1731041447890,-221752.42543646,0.000267,2]
[341620898,1731041448568,-150.173,0.00025768,2]
[341620899,1731041448578,-5031.42294518,0.000267,2]
[341620900,1731041554403,161.676204,0.00013973,2]
[341620902,1731041911466,694.44444444,0.00020843,2]
[341620904,1731042074875,413.8,0.0002,2]
[341620905,1731042115641,163.431432,0.00013973,2]
[341620913,1731042522637,694.44444444,0.00020843,2]
[341620915,1731042604999,3278.52832454,0.00021977,120]
[341620916,1731042605032,15155.93820016,0.00021977,120]
[341620919,1731042632690,-300.0,0.00021976,2]
[341620920,1731042632700,-170.17002186,0.00021976,2]
[341620921,1731042632712,-129.82997814,0.00021976,2]
[341620922,1731042632722,-592.90103401,0.00021977,2]
[341620941,1731042638692,-13786.10932229,0.00021977,2]
[341620943,1731042638701,-3318.6982736,0.00022705,2]
[341620945,1731042638710,-553.26,0.00022793,3]
[341620947,1731042638719,-500.0,0.00022801,2]
[341620948,1731042638728,-500.0,0.00022801,2]
[341620949,1731042638738,-500.0,0.00022801,2]
[341620950,1731042638747,-1157.22,0.00022801,2]
[341620951,1731042638757,-500.0,0.00022801,2]
[341620952,1731042638767,-500.0,0.00022801,2]
[341620953,1731042638776,-500.0,0.00022801,2]
[341620954,1731042638786,-500.0,0.00022801,2]
[341620955,1731042638797,-500.0,0.00022801,2]
[341620956,1731042638806,-6955.11,0.00022801,2]
[341620957,1731042638815,-500.0,0.00022801,2]
[341620958,1731042638826,-500.0,0.00022801,2]
[341620959,1731042638835,-500.0,0.00022801,2]
[341620960,1731042638845,-500.0,0.00022801,2]
[341620961,1731042638854,-328.1198865,0.00022802,2]
[341620962,1731042638863,-227.12562855,0.00022802,2]
[341620963,1731042638874,-500.0,0.00022802,2]
[341620964,1731042638883,-166.6819059,0.00022802,2]
[341620965,1731042638892,-500.0,0.00022802,2]
[341620966,1731042638901,-500.0,0.00022802,2]
[341620967,1731042638911,-500.0,0.00022802,2]
[341620968,1731042638926,-500.0,0.00022802,2]
[341620969,1731042638935,-500.0,0.00022802,2]
[341620970,1731042638944,-500.0,0.00022802,2]
[341620971,1731042638952,-500.0,0.00022802,2]
[341620972,1731042638961,-500.0,0.00022802,2]
[341620973,1731042638970,-500.0,0.00022802,2]
[341620974,1731042638979,-500.0,0.00022802,2]
[341620975,1731042638988,-500.0,0.00022802,2]
[341620976,1731042638997,-500.0,0.00022802,2]
[341620977,1731042639006,-500.0,0.00022802,2]
[341620978,1731042639016,-500.0,0.00022802,2]
[341620979,1731042639025,-500.0,0.00022802,2]
[341620980,1731042639034,-500.0,0.00022802,2]
[341620981,1731042639044,-500.0,0.00022802,2]
[341620982,1731042639054,-500.0,0.00022802,2]
[341620983,1731042639063,-500.0,0.00022802,2]
[341620984,1731042639073,-500.0,0.00022802,2]
[341620985,1731042639082,-500.0,0.00022802,2]
[341620986,1731042639091,-500.0,0.00022802,2]
[341620987,1731042639099,-500.0,0.00022802,2]
[341620988,1731042639108,-500.0,0.00022802,2]
[341620989,1731042639118,-500.0,0.00022802,2]
[341620990,1731042639127,-500.0,0.00022802,2]
[341620991,1731042639136,-500.0,0.00022802,2]
[341620992,1731042639145,-500.0,0.00022802,2]
[341620993,1731042639155,-500.0,0.00022802,2]
[341620994,1731042639164,-500.0,0.00022802,2]
[341620995,1731042639269,-500.0,0.00022802,2]
[341620996,1731042639278,-500.0,0.00022802,2]
[341620997,1731042639287,-500.0,0.00022802,2]
[341620998,1731042639296,-500.0,0.00022802,2]
[341620999,1731042639305,-500.0,0.00022802,2]
[341621000,1731042639315,-500.0,0.00022802,2]
[341621001,1731042639324,-500.0,0.00022802,2]
[341621002,1731042639334,-500.0,0.00022802,2]
[341621003,1731042639347,-500.0,0.00022802,2]
[341621004,1731042639356,-500.0,0.00022802,2]
[341621005,1731042639366,-500.0,0.00022802,2]
[341621006,1731042639376,-500.0,0.00022802,2]
[341621007,1731042639386,-500.0,0.00022802,2]
[341621008,1731042639395,-500.0,0.00022802,2]
[341621009,1731042639404,-512.51157762,0.00022802,2]
[341621010,1731042639414,-500.0,0.00022802,2]
[341621011,1731042639432,-500.0,0.00022802,2]
[341621012,1731042639441,-500.0,0.00022802,2]
[341621013,1731042639451,-500.0,0.00022802,2]
[341621014,1731042639460,-500.0,0.00022802,2]
[341621015,1731042639469,-500.0,0.00022802,2]
[341621016,1731042639477,-500.0,0.00022802,2]
[341621017,1731042639487,-500.0,0.00022802,2]
[341621018,1731042639496,-500.0,0.00022802,2]
[341621019,1731042639506,-500.0,0.00022802,2]
[341621020,1731042639514,-500.0,0.00022802,2]
[341621021,1731042639523,-500.0,0.00022802,2]
[341621022,1731042639538,-500.0,0.00022802,2]
[341621023,1731042639547,-500.0,0.00022802,2]
[341621024,1731042639559,-500.0,0.00022802,2]
[341621025,1731042639574,-500.0,0.00022802,2]
[341621026,1731042639583,-500.0,0.00022802,2]
[341621027,1731042639592,-500.0,0.00022802,2]
[341621028,1731042639601,-500.0,0.00022802,2]
[341621029,1731042639610,-500.0,0.00022802,2]
[341621030,1731042639619,-500.0,0.00022802,2]
[341621031,1731042639629,-191.12143262,0.00022802,2]
[341621032,1731042639640,-500.0,0.00022802,2]
[341621033,1731042639650,-500.0,0.00022802,2]
[341621034,1731042639659,-500.0,0.00022802,2]
[341621035,1731042639668,-199.92457203,0.00022802,2]
[341621036,1731042639677,-500.0,0.00022802,2]
[341621037,1731042639686,-500.0,0.00022802,2]
[341621038,1731042639696,-500.0,0.00022802,2]
[341621039,1731042639705,-500.0,0.00022802,2]
[341621040,1731042639714,-500.0,0.00022802,2]
[341621041,1731042639723,-500.0,0.00022802,2]
[341621042,1731042639733,-500.0,0.00022802,2]
[341621043,1731042639742,-500.0,0.00022802,2]
[341621044,1731042639752,-500.0,0.00022802,2]
[341621045,1731042639761,-500.0,0.00022802,2]
[341621046,1731042639771,-500.0,0.00022802,2]
[341621047,1731042639780,-500.0,0.00022802,2]
[341621048,1731042639789,-500.0,0.00022802,2]
[341621049,1731042639798,-500.0,0.00022802,2]
[341621050,1731042639808,-500.0,0.00022802,2]
[341621051,1731042639817,-500.0,0.00022802,2]
[341621052,1731042639826,-500.0,0.00022802,2]
[341621053,1731042639835,-500.0,0.00022802,2]
[341621054,1731042639845,-500.0,0.00022802,2]
[341621055,1731042639855,-500.0,0.00022802,2]
[341621056,1731042639864,-360.76931959,0.00022802,2]
[341621057,1731042639873,-500.0,0.00022802,2]
[341621058,1731042639883,-500.0,0.00022802,2]
[341621059,1731042639892,-500.0,0.00022802,2]
[341621060,1731042639902,-500.0,0.00022802,2]
[341621061,1731042639911,-299.99999999,0.00022802,2]
[341621062,1731042639923,-500.0,0.00022802,2]
[341621063,1731042639932,-650.0,0.00022802,2]
[341621064,1731042639942,-500.0,0.00022802,2]
[341621065,1731042639952,-500.0,0.00022802,2]
[341621066,1731042639962,-500.0,0.00022802,2]
[341621067,1731042639971,-368.57222317,0.00022802,2]
[341621068,1731042639981,-254.09609009,0.00022802,2]
[341621069,1731042639990,-500.0,0.00022803,2]
[341621070,1731042640000,-500.0,0.00022803,2]
[341621071,1731042640010,-500.0,0.00022803,2]
[341621072,1731042640020,-503.41992513,0.00022803,2]
[341621073,1731042640029,-500.0,0.00022803,2]
[341621074,1731042640039,-500.0,0.00022803,2]
[341621075,1731042640048,-500.0,0.00022803,2]
[341621076,1731042640058,-500.0,0.00022803,2]
[341621077,1731042640068,-500.0,0.00022803,2]
[341621078,1731042640077,-500.0,0.00022803,2]
[341621079,1731042640087,-500.0,0.00022803,2]
[341621080,1731042640096,-500.0,0.00022803,2]
[341621081,1731042640106,-590.99797664,0.00022803,2]
[341621083,1731042640115,-500.0,0.00022803,2]
[341621084,1731042640124,-500.0,0.00022803,2]
[341621085,1731042640134,-500.0,0.00022803,2]
[341621086,1731042640143,-500.0,0.00022803,2]
[341621087,1731042640154,-503.61090073,0.00022803,2]
[341621088,1731042640163,-503.07144391,0.00022803,2]
[341621090,1731042640174,-459.74636911,0.00022803,2]
[341621091,1731042640184,-500.0,0.00022803,2]
[341621092,1731042640194,-500.0,0.00022803,2]
[341621093,1731042640204,-500.0,0.00022803,2]
[341621094,1731042640214,-500.0,0.00022803,2]
[341621095,1731042640223,-506.28810026,0.00022803,2]
[341621097,1731042640233,-500.0,0.00022803,2]
[341621098,1731042640243,-500.0,0.00022803,2]
[341621099,1731042640253,-500.0,0.00022803,2]
[341621100,1731042640263,-500.0,0.00022803,2]
[341621101,1731042640272,-1000.0,0.00022803,5]
[341621102,1731042640281,-500.0,0.00022803,2]
[341621103,1731042640291,-500.0,0.00022803,2]
[341621104,1731042640299,-609.36,0.00022803,2]
[341621105,1731042640309,-510.63939578,0.00022803,2]
[341621106,1731042640318,-500.0,0.00022803,2]
[341621107,1731042640328,-500.0,0.00022803,2]
[341621108,1731042640339,-162.10200774,0.00022803,2]
[341621109,1731042640351,-500.0,0.00022803,2]
[341621110,1731042640360,-500.0,0.00022803,2]
[341621111,1731042640370,-500.0,0.00022803,2]
[341621112,1731042640380,-500.0,0.00022803,2]
[341621113,1731042640390,-500.0,0.00022803,2]
[341621114,1731042640400,-562.12355078,0.00022803,2]
[341621115,1731042640410,-500.0,0.00022803,2]
[341621116,1731042640421,-500.0,0.00022803,2]
[341621117,1731042640431,-500.0,0.00022803,2]
[341621118,1731042640441,-500.0,0.00022803,2]
[341621119,1731042640450,-500.0,0.00022803,2]
[341621120,1731042640460,-169.66000091,0.00022803,2]
[341621121,1731042640469,-511.76103884,0.00022803,2]
[341621122,1731042640478,-1631.23,0.00022803,2]
[341621123,1731042640487,-500.0,0.00022803,2]
[341621124,1731042640497,-500.0,0.00022803,2]
[341621125,1731042640506,-500.0,0.00022803,2]
[341621126,1731042640515,-500.0,0.00022803,2]
[341621127,1731042640524,-500.0,0.00022803,2]
[341621128,1731042640534,-500.0,0.00022803,2]
[341621129,1731042640544,-522.07734048,0.00022803,2]
[341621130,1731042640553,-503.0861463,0.00022803,2]
[341621131,1731042640563,-503.58086506,0.00022803,2]
[341621132,1731042640574,-500.0,0.00022803,2]
[341621133,1731042640586,-500.0,0.00022803,2]
[341621134,1731042640596,-500.0,0.00022803,2]
[341621135,1731042640606,-500.0,0.00022803,2]
[341621136,1731042640615,-500.0,0.00022803,2]
[341621137,1731042640626,-500.0,0.00022803,2]
[341621138,1731042640635,-510.50592601,0.00022803,2]
[341621139,1731042640647,-500.0,0.00022803,2]
[341621140,1731042640657,-500.0,0.00022803,2]
[341621141,1731042640666,-500.0,0.00022803,2]
[341621142,1731042640676,-500.0,0.00022803,2]
[341621143,1731042640686,-500.0,0.00022803,2]
[341621144,1731042640697,-525.58474719,0.00022803,2]
[341621145,1731042640715,-500.0,0.00022803,2]
[341621146,1731042640724,-577.54,0.00022803,2]
[341621147,1731042640734,-500.0,0.00022803,2]
[341621148,1731042640744,-453.86857084,0.00022803,2]
[341621149,1731042640755,-500.0,0.00022803,2]
[341621150,1731042640764,-500.0,0.00022803,2]
[341621151,1731042640775,-500.0,0.00022803,2]
[341621152,1731042640784,-500.0,0.00022803,2]
[341621153,1731042640794,-500.0,0.00022803,2]
[341621154,1731042640804,-500.0,0.00022803,2]
[341621155,1731042640814,-500.0,0.00022803,2]
[341621156,1731042640902,-500.0,0.00022803,2]
[341621157,1731042640912,-500.0,0.00022803,2]
[341621158,1731042640921,-502.21116589,0.00022803,2]
[341621159,1731042640931,-510.06422856,0.00022803,2]
[341621160,1731042640941,-500.0,0.00022803,2]
[341621161,1731042640950,-493.20093489,0.00022803,2]
[341621162,1731042640960,-256.25721972,0.00022803,2]
[341621163,1731042640970,-500.0,0.00022803,2]
[341621164,1731042640980,-2336.0,0.00022803,2]
[341621165,1731042640990,-281.43557638,0.00022803,2]
[341621166,1731042640999,-512.27170226,0.00022803,2]
[341621167,1731042641009,-500.0,0.00022803,2]
[341621168,1731042641018,-501.16094488,0.00022803,2]
[341621169,1731042641027,-500.0,0.00022803,2]
[341621170,1731042641037,-500.0,0.00022803,2]
[341621171,1731042641046,-1000.0,0.00022803,2]
[341621172,1731042641056,-500.0,0.00022803,2]
[341621173,1731042641066,-501.44,0.00022803,2]
[341621174,1731042641075,-500.0,0.00022803,2]
[341621175,1731042641085,-500.0,0.00022803,2]
[341621176,1731042641094,-500.0,0.00022803,2]
[341621177,1731042641104,-500.0,0.00022803,2]
[341621178,1731042641115,-500.0,0.00022803,2]
[341621179,1731042641125,-500.0,0.00022803,2]
[341621180,1731042641135,-500.0,0.00022803,2]
[341621181,1731042641144,-500.0,0.00022803,2]
[341621182,1731042641153,-500.0,0.00022803,2]
[341621183,1731042641162,-500.0,0.00022803,2]
[341621184,1731042641173,-500.0,0.00022803,2]
[341621185,1731042641182,-500.0,0.00022803,2]
[341621186,1731042641192,-516.45212128,0.00022803,2]
[341621187,1731042641201,-500.0,0.00022803,2]
[341621188,1731042641211,-500.0,0.00022803,2]
[341621189,1731042641220,-500.0,0.00022803,2]
[341621190,1731042641229,-218.23161597,0.00022803,2]
[341621191,1731042641238,-364.62823076,0.00022803,2]
[341621192,1731042641248,-500.0,0.00022803,2]
[341621193,1731042641257,-500.0,0.00022803,2]
[341621194,1731042641266,-500.0,0.00022803,2]
[341621195,1731042641275,-500.0,0.00022803,2]
[341621196,1731042641284,-500.0,0.00022803,2]
[341621197,1731042641294,-500.0,0.00022803,2]
[341621198,1731042641303,-500.0,0.00022803,2]
[341621199,1731042641312,-504.81539637,0.00022803,2]
[341621200,1731042641322,-514.41940083,0.00022803,2]
[341621201,1731042641331,-500.0,0.00022803,2]
[341621202,1731042641344,-500.0,0.00022803,2]
[341621203,1731042641354,-501.67007424,0.00022803,2]
[341621204,1731042641364,-509.72180043,0.00022803,2]
[341621205,1731042641374,-500.0,0.00022803,2]
[341621206,1731042641383,-500.0,0.00022803,2]
[341621207,1731042641393,-1716.27,0.00022803,2]
[341621208,1731042641402,-500.0,0.00022803,2]
[341621209,1731042641411,-500.0,0.00022803,2]
[341621210,1731042641421,-500.0,0.00022803,2]
[341621211,1731042641430,-520.5645693,0.00022803,2]
[341621212,1731042641440,-500.0,0.00022803,2]
[341621213,1731042641449,-232.31906624,0.00022803,2]
[341621214,1731042641459,-500.0,0.00022803,2]
[341621215,1731042641469,-500.0,0.00022803,2]
[341621216,1731042641478,-500.0,0.00022803,2]
[341621217,1731042641487,-509.07742221,0.00022803,2]
[341621218,1731042641497,-500.0,0.00022803,2]
[341621219,1731042641506,-500.0,0.00022803,2]
[341621220,1731042641515,-500.0,0.00022803,2]
[341621221,1731042641525,-500.0,0.00022803,2]
[341621222,1731042641534,-500.0,0.00022803,2]
[341621223,1731042641544,-504.00127753,0.00022803,2]
[341621224,1731042641553,-500.0,0.00022803,2]
[341621225,1731042641562,-534.34357939,0.00022803,2]
[341621226,1731042641572,-756.1,0.00022803,2]
[341621227,1731042641581,-500.0,0.00022803,2]
[341621228,1731042641591,-500.0,0.00022803,2]
[341621229,1731042641601,-502.15158144,0.00022803,2]
[341621230,1731042641612,-500.0,0.00022803,2]
[341621231,1731042641622,-15386.03,0.00022803,2]
[341621232,1731042641633,-500.0,0.00022803,2]
[341621233,1731042641643,-500.0,0.00022803,2]
[341621234,1731042641652,-500.0,0.00022803,2]
[341621235,1731042641662,-15896.94,0.00022803,2]
[341621236,1731042641671,-500.0,0.00022803,2]
[341621237,1731042641680,-500.0,0.00022803,2]
[341621238,1731042641689,-500.0,0.00022803,2]
[341621239,1731042641698,-500.0,0.00022803,2]
[341621240,1731042641707,-556.83,0.00022803,2]
[341621241,1731042641716,-523.15000698,0.00022803,2]
[341621242,1731042641726,-500.0,0.00022803,2]
[341621243,1731042641735,-500.0,0.00022803,2]
[341621244,1731042641745,-500.0,0.00022803,2]
[341621245,1731042641754,-500.0,0.00022803,2]
[341621246,1731042641764,-500.0,0.00022803,2]
[341621247,1731042641773,-500.0,0.00022803,2]
[341621248,1731042641783,-7867.05,0.00022803,2]
[341621249,1731042641792,-500.0,0.00022803,2]
[341621250,1731042641802,-500.0,0.00022803,2]
[341621251,1731042641811,-627.68711973,0.00022803,2]
[341621252,1731042641820,-1315.45,0.00022803,2]
[341621253,1731042641829,-500.0,0.00022803,2]
[341621254,1731042641839,-500.0,0.00022803,2]
[341621255,1731042641848,-500.0,0.00022803,2]
[341621256,1731042641859,-500.0,0.00022803,2]
[341621257,1731042641870,-500.0,0.00022803,2]
[341621258,1731042641879,-500.0,0.00022803,2]
[341621259,1731042641888,-500.0,0.00022803,2]
[341621260,1731042641899,-500.0,0.00022803,2]
[341621261,1731042641908,-500.0,0.00022803,2]
[341621262,1731042641917,-500.0,0.00022803,2]
[341621263,1731042641927,-500.0,0.00022803,2]
[341621264,1731042641936,-500.0,0.00022803,2]
[341621265,1731042641945,-500.0,0.00022803,2]
[341621266,1731042641954,-500.0,0.00022803,2]
[341621267,1731042641963,-500.0,0.00022803,2]
[341621268,1731042641973,-500.0,0.00022803,2]
[341621269,1731042641982,-500.0,0.00022803,2]
[341621270,1731042641991,-500.0,0.00022803,2]
[341621271,1731042642000,-517.02479534,0.00022803,2]
[341621272,1731042642010,-848.73,0.00022803,2]
[341621273,1731042642019,-500.0,0.00022803,2]
[341621274,1731042642028,-500.0,0.00022803,2]
[341621275,1731042642038,-500.0,0.00022803,2]
[341621276,1731042642047,-500.0,0.00022803,2]
[341621277,1731042642057,-502.63741734,0.00022803,2]
[341621278,1731042642066,-500.0,0.00022803,2]
[341621279,1731042642075,-500.0,0.00022803,2]
[341621280,1731042642085,-500.0,0.00022803,2]
[341621281,1731042642095,-151.0,0.00022803,7]
[341621282,1731042642105,-500.0,0.00022803,2]
[341621283,1731042642115,-151.0,0.00022803,7]
[341621284,1731042642125,-502.61058034,0.00022803,2]
[341621285,1731042642134,-526.54289564,0.00022803,2]
[341621286,1731042642143,-404.41589253,0.00022803,2]
[341621287,1731042642152,-502.12723134,0.00022803,2]
[341621288,1731042642162,-151.0,0.00022803,7]
[341621289,1731042642172,-151.0,0.00022803,7]
[341621290,1731042642182,-234.70997382,0.00022803,2]
[341621291,1731042642191,-502.25816379,0.00022803,2]
[341621292,1731042642200,-500.0,0.00022803,2]
[341621293,1731042642209,-500.0,0.00022803,2]
[341621294,1731042642219,-500.0,0.00022803,2]
[341621295,1731042642228,-502.30462674,0.00022803,2]
[341621296,1731042642237,-500.0,0.00022803,2]
[341621297,1731042642246,-500.59836374,0.00022803,2]
[341621298,1731042642256,-500.0,0.00022803,2]
[341621299,1731042642266,-500.0,0.00022803,2]
[341621300,1731042642276,-500.0,0.00022803,2]
[341621301,1731042642362,-1199.32,0.00022803,2]
[341621302,1731042642373,-307.12270515,0.00022803,2]
[341621303,1731042642383,-500.0,0.00022803,2]
[341621304,1731042642392,-500.0,0.00022803,2]
[341621305,1731042642402,-500.0,0.00022803,2]
[341621306,1731042642412,-250.0,0.00022803,2]
[341621307,1731042642422,-509.53399555,0.00022803,2]
[341621308,1731042642432,-500.0,0.00022803,2]
[341621309,1731042642441,-500.0,0.00022803,2]
[341621310,1731042642451,-500.0,0.00022803,2]
[341621311,1731042642460,-500.0,0.00022803,2]
[341621312,1731042642470,-518.99533167,0.00022803,2]
[341621313,1731042642480,-500.0,0.00022803,2]
[341621314,1731042642490,-500.0,0.00022803,2]
[341621315,1731042642499,-621.652994,0.00022803,7]
[341621316,1731042642509,-621.652994,0.00022803,7]
[341621317,1731042642519,-500.0,0.00022803,2]
[341621318,1731042642528,-500.0,0.00022803,2]
[341621319,1731042642537,-621.652994,0.00022803,7]
[341621320,1731042642547,-537.6,0.00022803,2]
[341621321,1731042642556,-621.652994,0.00022803,7]
[341621322,1731042642565,-151.0,0.00022803,7]
[341621323,1731042642575,-201.466296,0.00022803,7]
[341621324,1731042642584,-612.93,0.00022803,2]
[341621325,1731042642594,-502.32753595,0.00022803,2]
[341621326,1731042642603,-530.08006592,0.00022803,2]
[341621327,1731042642612,-506.44785735,0.00022803,2]
[341621328,1731042642622,-500.0,0.00022803,2]
[341621329,1731042642632,-500.0,0.00022803,2]
[341621330,1731042642641,-232.779667,0.00022803,7]
[341621331,1731042642651,-535.4,0.00022803,2]
[341621332,1731042642660,-566.09161638,0.00022803,2]
[341621333,1731042642670,-151.0,0.00022803,7]
[341621334,1731042642680,-151.0,0.00022803,7]
[341621335,1731042642690,-500.0,0.00022803,2]